fUSD/lending_fUSD_20250206
["ID","MTS","AMOUNT","RATE_DAILY","PERIOD"]
[351845189,1738816238403,-576.46,0.00018874,30]
[351845190,1738816238413,-2762.17,0.00018893,2]
[351845191,1738816238423,-700.0,0.00019,2]
[351845192,1738816238433,-200.0,0.00019043,2]
[351845193,1738816238443,-355.62,0.00019065,2]
[351845194,1738816238453,-150.0,0.00019178,2]
[351845195,1738816238462,-5608.0,0.000192,2]
[351845197,1738816238471,-1200.0,0.000192,7]
[351845199,1738816238481,-2400.0,0.000193,7]
[351845200,1738816238491,-3600.0,0.000194,7]
[351845201,1738816238500,-4800.0,0.000195,7]
[351845202,1738816238509,-381.58,0.00019543,2]
[351845203,1738816238518,-369.26,0.000196,2]
[351845205,1738816238529,-370.15,0.000196,2]
[351845206,1738816238539,-379.53,0.000196,2]
[351845207,1738816238548,-375.05,0.000196,2]
[351845208,1738816238558,-379.49,0.000196,2]
[351845209,1738816238567,-6000.0,0.000196,7]
[351845210,1738816238577,-168.35,0.00019608,2]
[351845211,1738816238586,-150.0,0.00019683,2]
[351845213,1738816238595,-3000.0,0.000197,2]
[351845215,1738816238605,-1200.0,0.000197,7]
[351845218,1738816238615,-196.81,0.00019786,2]
[351845219,1738816238624,-223.172,0.00019786,2]
[351845221,1738816238634,-1289.36,0.00019786,2]
[351845224,1738816238644,-1200.0,0.000198,7]
[351845225,1738816238654,-591.83939071,0.00019897,2]
[351845229,1738816238663,-1200.0,0.000199,7]
[351845232,1738816238673,-2017.85392898,0.0002,2]
[351845235,1738816238682,-220.74950132,0.0002,3]
[351845238,1738816238692,-1295.07396,0.0002,2]
[351845239,1738816238702,-274.15138548,0.0002,3]
[351845254,1738816238832,-500.0,0.0002,3]
[351845256,1738816238842,-194.89283722,0.0002,3]
[351845258,1738816238852,-500.0,0.0002,3]
[351845260,1738816238861,-502.63498229,0.0002,3]
[351845262,1738816238871,-500.0,0.00020038,2]
[351845264,1738816238880,-174.21510534,0.00020099,3]
[351845266,1738816238891,-448.58,0.000201,31]
[351845268,1738816238901,-448.58,0.000201,31]
[351845270,1738816238911,-448.58,0.000201,31]
[351845272,1738816238920,-448.58,0.000201,31]
[351845274,1738816238930,-448.58,0.000201,31]
[351845276,1738816238941,-448.58,0.000201,31]
[351845278,1738816238952,-448.58,0.000201,31]
[351845280,1738816238961,-448.58,0.000201,31]
[351845282,1738816238971,-448.58,0.000201,31]
[351845284,1738816238981,-448.58,0.000201,31]
[351845286,1738816238991,-448.58,0.000201,31]
[351845288,1738816239000,-448.58,0.000201,31]
[351845290,1738816239009,-448.58,0.000201,31]
[351845292,1738816239019,-448.58,0.000201,31]
[351845294,1738816239030,-448.58,0.000201,31]
[351845296,1738816239039,-448.58,0.000201,31]
[351845298,1738816239048,-1000.0,0.000201,2]
[351845300,1738816239057,-1000.0,0.000201,2]
[351845302,1738816239067,-1000.0,0.000201,2]
[351845303,1738816239076,-1000.0,0.000201,2]
[351845305,1738816239086,-1000.0,0.000201,2]
[351845307,1738816239096,-1000.0,0.000201,2]
[351845309,1738816239105,-1000.0,0.000201,2]
[351845311,1738816239114,-1008.0,0.000201,2]
[351845313,1738816239123,-150.0,0.00020187,2]
[351845315,1738816239132,-2720.45012732,0.00020201,10]
[351845317,1738816239141,-729.11026486,0.00020201,2]
[351845319,1738816239150,-666.0,0.00020202,2]
[351845321,1738816239159,-666.0,0.00020202,2]
[351845323,1738816239168,-1000.0,0.00020202,2]
[351845325,1738816239178,-333.4934,0.00020202,2]
[351845327,1738816239188,-2000.0,0.00020202,2]
[351845329,1738816239197,-421.3597809,0.00020202,2]
[351845331,1738816239206,-2000.0,0.00020202,2]
[351845333,1738816239216,-2000.0,0.00020202,2]
[351845335,1738816239225,-757.5804198,0.00020202,2]
[351845337,1738816239235,-666.0,0.00020202,2]
[351845339,1738816239245,-500.0,0.00020202,3]
[351845341,1738816239254,-500.0,0.00020202,3]
[351845343,1738816239264,-500.0,0.00020202,3]
[351845345,1738816239273,-500.0,0.00020202,3]
[351845347,1738816239284,-500.0,0.00020202,3]
[351845349,1738816239294,-500.0,0.00020202,3]
[351845351,1738816239303,-500.0,0.00020202,3]
[351845353,1738816239313,-500.0,0.00020202,3]
[351845355,1738816239323,-500.0,0.00020202,3]
[351845358,1738816239333,-500.0,0.00020202,3]
[351845360,1738816239343,-500.0,0.00020202,3]
[351845362,1738816239352,-500.0,0.00020202,3]
[351845364,1738816239362,-500.0,0.00020202,3]
[351845365,1738816239372,-744.3910849,0.00020202,2]
[351845367,1738816239381,-265.15161337,0.00020202,3]
[351845369,1738816239391,-500.0,0.00020202,3]
[351845371,1738816239400,-500.0,0.00020202,3]
[351845373,1738816239410,-500.0,0.00020202,3]
[351845375,1738816239419,-500.0,0.00020202,3]
[351845377,1738816239429,-221.13196692,0.00020202,3]
[351845379,1738816239438,-280.02118962,0.00020202,3]
[351845381,1738816239448,-1213.62,0.00020202,2]
[351845383,1738816239457,-2293.35,0.00020202,3]
[351845385,1738816239466,-2293.35,0.00020202,3]
[351845387,1738816239476,-2293.35,0.00020202,3]
[351845389,1738816239485,-2293.35,0.00020202,3]
[351845391,1738816239494,-2293.35,0.00020202,3]
[351845393,1738816239504,-2293.35,0.00020202,3]
[351845395,1738816239514,-2293.35,0.00020202,3]
[351845397,1738816239523,-2293.35,0.00020202,3]
[351845399,1738816239532,-2293.35,0.00020202,3]
[351845401,1738816239543,-2293.35,0.00020202,3]
[351845403,1738816239553,-2293.35,0.00020202,3]
[351845405,1738816239562,-2293.35,0.00020202,3]
[351845407,1738816239572,-2293.35,0.00020202,3]
[351845409,1738816239581,-666.0,0.00020202,2]
[351845411,1738816239591,-500.0,0.00020202,3]
[351845413,1738816239600,-493.04992498,0.00020202,3]
[351845415,1738816239610,-666.0,0.00020202,2]
[351845417,1738816239619,-781.0,0.00020202,2]
[351845419,1738816239628,-1000.0,0.00020202,2]
[351845421,1738816239638,-1000.0,0.00020202,2]
[351845423,1738816239648,-1000.0,0.00020202,2]
[351845426,1738816239657,-1000.0,0.00020202,2]
[351845428,1738816239667,-1000.0,0.00020202,2]
[351845430,1738816239676,-1000.0,0.00020202,2]
[351845431,1738816239685,-1000.0,0.00020202,2]
[351845433,1738816239694,-1000.0,0.00020202,2]
[351845435,1738816239704,-1000.0,0.00020202,2]
[351845437,1738816239713,-1000.0,0.00020202,2]
[351845439,1738816239722,-1000.0,0.00020202,2]
[351845441,1738816239731,-1000.0,0.00020202,2]
[351845443,1738816239740,-1000.0,0.00020202,2]
[351845445,1738816239750,-1000.0,0.00020202,2]
[351845447,1738816239759,-1000.0,0.00020202,2]
[351845449,1738816239768,-1000.0,0.00020202,2]
[351845451,1738816239777,-1000.0,0.00020202,2]
[351845453,1738816239789,-1000.0,0.00020202,2]
[351845455,1738816239798,-1000.0,0.00020202,2]
[351845457,1738816239807,-1000.0,0.00020202,2]
[351845459,1738816239816,-1000.0,0.00020202,2]
[351845461,1738816239825,-1000.0,0.00020202,2]
[351845463,1738816239835,-1000.0,0.00020202,2]
[351845465,1738816239844,-1000.0,0.00020202,2]
[351845467,1738816239853,-239.65741907,0.00020202,2]
[351845469,1738816239862,-156.0163774,0.00020202,2]
[351845471,1738816239871,-102226.81133811,0.00020202,2]
[351845473,1738816239880,-666.0,0.00020203,2]
[351845475,1738816239889,-13119.51727651,0.00020203,2]
[351845477,1738816239899,-14312.35874808,0.00020203,2]
[351845479,1738816239908,-49511.26245977,0.00020203,2]
[351845481,1738816239917,-3070.49772569,0.00020203,5]
[351845483,1738816239927,-4783.49764578,0.00020203,10]
[351845485,1738816239938,-542.34764649,0.00020203,2]
[351845487,1738816239949,-4958.95431834,0.00020203,2]
[351845489,1738816239959,-5146.91095988,0.00020203,2]
[351845491,1738816239969,-1001.56072902,0.00020203,2]
[351845493,1738816239980,-270.58824655,0.00020203,10]
[351845495,1738816239990,-361.12029132,0.00020203,2]
[351845498,1738816240001,-13146.15283932,0.00020203,5]
[351845500,1738816240012,-2183.26163786,0.00020203,2]
[351845503,1738816240023,-57796.7535166,0.00020203,30]
[351845505,1738816240033,-280.83347262,0.00020203,2]
[351845507,1738816240043,-777.92398784,0.00020203,120]
[351845509,1738816240052,-640.00589488,0.00020203,30]
[351845511,1738816240061,-305590.40037914,0.00020203,30]
[351845514,1738816240071,-14621.74210896,0.00020203,2]
[351845517,1738816240080,-63237.08952532,0.00020203,30]
[351845519,1738816240090,-56571.77669962,0.00020203,30]
[351845521,1738816240099,-24843.43048125,0.00020203,14]
[351845523,1738816240109,-22147.44351876,0.00020203,45]
[351845525,1738816240118,-5757.70707106,0.00020203,10]
[351845527,1738816240127,-2384561.72076503,0.00020203,60]
[351845529,1738816240137,-3858.0,0.00020203,30]
[351845531,1738816240147,-4053.92736273,0.00020203,120]
[351845533,1738816240156,-2871.34669781,0.00020203,120]
[351845535,1738816240165,-1089.41,0.00020203,120]
[351845537,1738816240175,-99413.25776636,0.00020203,24]
[351845539,1738816240184,-1160.50396364,0.00020203,90]
[351845541,1738816240193,-555.01872721,0.00020203,5]
[351845543,1738816240202,-199661.03889729,0.00020203,2]
[351845545,1738816240211,-1471.9428576,0.00020203,10]
[351845547,1738816240220,-1043.63326031,0.00020203,120]
[351845549,1738816240230,-624.46451205,0.00020203,30]
[351845551,1738816240239,-120757.47889637,0.00020203,2]
[351845553,1738816240249,-171.20987586,0.00020203,91]
[351845555,1738816240258,-1312369.26809356,0.00020203,30]
[351845557,1738816240272,-641.17075531,0.00020203,30]
[351845559,1738816240283,-434.2840143,0.00020203,30]
[351845561,1738816240293,-63590.4780721,0.00020203,30]
[351845563,1738816240304,-442.20931429,0.00020203,30]
[351845566,1738816240315,-14632.66724985,0.00020203,30]
[351845568,1738816240327,-398.50609176,0.00020203,30]
[351845570,1738816240338,-7000.0,0.00020203,30]
[351845573,1738816240353,-44879.89503944,0.00020203,30]
[351845586,1738816240470,-3563.4052644,0.00020203,30]
[351845588,1738816240481,-321.2614063,0.00020203,30]
[351845594,1738816240529,-21000.0,0.00020203,30]
[351845900,1738816243306,-421.22798426,0.0002,3]
[351845902,1738816243316,-526.00520104,0.0002,3]
[351845904,1738816243325,-271.61864516,0.00020202,3]
[351845906,1738816243334,-604.0,0.00020202,2]
[351845908,1738816243343,-896.44798478,0.00020203,30]
[351846235,1738816246525,-514.42875825,0.0002,3]
[351846237,1738816246536,-500.0,0.00020202,3]
[351846239,1738816246545,-184.86,0.00020202,3]
[351846241,1738816246555,-2735.82450251,0.00020203,30]
[351846244,1738816246566,-1543.49445055,0.00020203,30]
[351846246,1738816246577,-28272.6297284,0.00020203,30]
[351846248,1738816246589,-303502.41256028,0.00020203,30]
[351846250,1738816246601,-26403.0811364,0.00020203,30]
[351846906,1738816267115,391.51403714,9.944e-05,2]
[351846907,1738816267165,391.51403714,9.954e-05,2]
[351846908,1738816267479,391.51403714,9.945e-05,2]
[351846909,1738816267862,391.51403714,9.992e-05,2]
[351846910,1738816307302,267.595,8.119e-05,2]
[351846911,1738816372023,2228.2772,8.699e-05,2]
[351846913,1738816556734,2500.0,0.0002,120]
[351846914,1738816632773,100000.0,8e-05,2]
[351846932,1738817432379,-550.0,0.00013,2]
[351846933,1738817432390,-446.04733761,0.00014,2]
[351846934,1738817432487,-4125.935,0.00014,2]
[351846935,1738817432546,-252.5,0.00014,2]
[351846936,1738817432558,-420.0,0.00014,2]
[351846937,1738817432570,-993.732985,0.00014,2]
[351846938,1738817432583,-743.93422967,0.00014,2]
[351846939,1738817432602,-744.5572046,0.00014,2]
[351846940,1738817432614,-402.92919909,0.00014,2]
[351846941,1738817432657,-497.288997,0.00014,2]
[351846942,1738817432713,-5201.88995044,0.00014,2]
[351846965,1738817438361,-21919.46509659,0.00014,2]
[351846966,1738817438371,-150.0,0.000143,2]
[351846967,1738817438380,-150.0,0.00014394,2]
[351846968,1738817438390,-502.7836766,0.00014973,2]
[351846969,1738817438401,-150.0,0.00014999,2]
[351846970,1738817438411,-100000.0,0.00015,2]
[351846971,1738817438420,-28572.05275469,0.00015,2]
[351846972,1738817438431,-600.0,0.00015,2]
[351846973,1738817438440,-150.0,0.0001537,2]
[351846974,1738817438452,-320.05,0.00016733,2]
[351846975,1738817438461,-650.0,0.00017,2]
[351846976,1738817438471,-729.11026486,0.00018148,2]
[351846977,1738817438481,-150.0,0.00018173,2]
[351846978,1738817438491,-151.72314805,0.00018173,2]
[351846979,1738817438501,-200.0,0.00018355,2]
[351846980,1738817438512,-11543.34,0.0001837,2]
[351846981,1738817438522,-1000.0,0.00018556,2]
[351846982,1738817438531,-168.35,0.00018576,2]
[351846983,1738817438540,-183.96,0.00018583,2]
[351846984,1738817438550,-157.44,0.00018701,2]
[351846985,1738817438559,-200.0,0.00018834,2]
[351846986,1738817438570,-547.63,0.00018867,30]
[351846987,1738817438580,-378.82,0.000189,2]
[351846988,1738817438591,-377.18,0.00018939,2]
[351846989,1738817438600,-368.56,0.00018996,2]
[351846990,1738817438610,-320.05,0.00018997,2]
[351846991,1738817438620,-700.0,0.00019,2]
[351846992,1738817438631,-369.8,0.00019084,2]
[351846993,1738817438640,-150.0,0.00019178,2]
[351846994,1738817438650,-376.87,0.00019179,2]
[351846995,1738817438661,-377.65,0.00019179,2]
[351846996,1738817438671,-379.97,0.00019179,2]
[351846997,1738817438682,-370.91,0.0001918,2]
[351846998,1738817438692,-379.76,0.0001918,2]
[351846999,1738817438702,-370.58,0.00019181,2]
[351847000,1738817438711,-379.41,0.00019183,2]
[351847001,1738817438721,-373.13,0.00019184,2]
[351847002,1738817438731,-371.91,0.00019187,2]
[351847003,1738817438742,-371.73,0.00019191,2]
[351847004,1738817438751,-375.84,0.00019191,2]
[351847005,1738817438764,-371.87,0.00019191,2]
[351847006,1738817438775,-382.31,0.00019191,2]
[351847007,1738817438786,-375.59,0.00019191,2]
[351847008,1738817438795,-375.43,0.00019191,2]
[351847009,1738817438805,-377.35,0.00019191,2]
[351847010,1738817438814,-374.74,0.00019191,2]
[351847011,1738817438824,-1927.38307142,0.00019255,2]
[351847012,1738817438833,-379.42,0.00019393,2]
[351847013,1738817438842,-378.4,0.00019473,2]
[351847014,1738817438851,-369.89,0.00019598,2]
[351847015,1738817438862,-150.0,0.00019683,2]
[351847016,1738817438870,-1365.988,0.00019683,2]
[351847017,1738817438880,-3000.0,0.000197,2]
[351847018,1738817438891,-322.96957296,0.00019763,2]
[351847019,1738817438900,-374.25,0.00019788,2]
[351847020,1738817438910,-229.10518051,0.00019913,2]
[351847021,1738817438919,-164.93818264,0.00019973,2]
[351847022,1738817438928,-1000.0,0.0002,2]
[351847023,1738817438938,-1000.0,0.0002,2]
[351847024,1738817438949,-1000.0,0.0002,2]
[351847025,1738817438959,-1000.0,0.0002,2]
[351847026,1738817438968,-1000.0,0.0002,2]
[351847027,1738817438979,-1000.0,0.0002,2]
[351847028,1738817438988,-1000.0,0.0002,2]
[351847029,1738817438997,-1000.0,0.0002,2]
[351847030,1738817439007,-1000.0,0.0002,2]
[351847031,1738817439016,-579.0,0.0002,2]
[351847032,1738817439025,-500.0,0.0002,3]
[351847033,1738817439036,-500.0,0.0002,3]
[351847034,1738817439045,-1000.0,0.0002,2]
[351847035,1738817439054,-1000.0,0.0002,2]
[351847036,1738817439063,-1000.0,0.0002,2]
[351847037,1738817439072,-1000.0,0.0002,2]
[351847038,1738817439082,-504.58753181,0.0002,3]
[351847039,1738817439091,-500.0,0.0002,3]
[351847040,1738817439101,-500.0,0.0002,3]
[351847041,1738817439110,-500.0,0.0002,3]
[351847042,1738817439120,-504.19254699,0.0002,3]
[351847043,1738817439129,-504.295837,0.0002,7]
[351847044,1738817439138,-500.0,0.0002,3]
[351847045,1738817439148,-500.0,0.0002,3]
[351847046,1738817439157,-1000.0,0.0002,2]
[351847047,1738817439166,-1000.0,0.0002,2]
[351847048,1738817439176,-1000.0,0.0002,2]
[351847049,1738817439185,-1000.0,0.0002,2]
[351847050,1738817439195,-500.0,0.0002,3]
[351847051,1738817439204,-1000.0,0.0002,2]
[351847052,1738817439213,-1000.0,0.0002,2]
[351847053,1738817439222,-1000.0,0.0002,2]
[351847054,1738817439232,-1008.0,0.0002,2]
[351847055,1738817439241,-500.0,0.0002,3]
[351847056,1738817439250,-458.97989573,0.0002,3]
[351847057,1738817439260,-500.0,0.0002,3]
[351847058,1738817439269,-500.0,0.0002,3]
[351847059,1738817439278,-500.0,0.0002,3]
[351847060,1738817439288,-8877.63876498,0.0002,10]
[351847061,1738817439297,-500.0,0.0002,3]
[351847062,1738817439307,-500.0,0.0002,3]
[351847063,1738817439316,-188.65075576,0.0002,3]
[351847064,1738817439325,-500.0,0.0002,3]
[351847065,1738817439335,-500.0,0.0002,2]
[351847066,1738817439346,-500.0,0.0002,3]
[351847067,1738817439359,-500.0,0.0002,3]
[351847068,1738817439368,-500.0,0.0002,3]
[351847069,1738817439377,-500.0,0.0002,3]
[351847070,1738817439387,-500.0,0.0002,3]
[351847071,1738817439397,-500.0,0.0002,3]
[351847072,1738817439407,-500.0,0.0002,3]
[351847073,1738817439415,-500.0,0.0002,3]
[351847074,1738817439424,-500.0,0.0002,3]
[351847075,1738817439436,-500.0,0.0002,3]
[351847076,1738817439445,-500.0,0.0002,3]
[351847077,1738817439455,-500.0,0.0002,3]
[351847078,1738817439463,-504.64573303,0.0002,3]
[351847079,1738817439472,-511.26290882,0.0002,3]
[351847080,1738817439482,-507.48007249,0.0002,3]
[351847081,1738817439491,-217.6747279,0.0002,3]
[351847082,1738817439501,-500.0,0.0002,3]
[351847083,1738817439510,-500.0,0.0002,3]
[351847084,1738817439519,-509.18646923,0.0002,3]
[351847085,1738817439529,-546.77027952,0.0002,3]
[351847086,1738817439538,-500.0,0.0002,3]
[351847087,1738817439549,-500.0,0.0002,3]
[351847088,1738817439558,-500.0,0.0002,3]
[351847089,1738817439567,-531.0733143,0.0002,3]
[351847090,1738817439576,-500.0,0.0002,3]
[351847091,1738817439585,-637.64336842,0.0002,3]
[351847092,1738817439595,-505.10696206,0.0002,3]
[351847093,1738817439692,-500.0,0.0002,3]
[351847094,1738817439725,-500.0,0.0002,3]
[351847095,1738817439735,-466.51317024,0.0002,3]
[351847096,1738817439749,-587.91766034,0.0002,3]
[351847097,1738817439759,-204.67117003,0.0002,3]
[351847098,1738817439769,-401.07680175,0.0002,3]
[351847099,1738817439778,-500.0,0.0002,3]
[351847100,1738817439788,-500.0,0.0002,3]
[351847101,1738817439797,-520.20641191,0.0002,3]
[351847102,1738817439807,-500.0,0.0002,3]
[351847103,1738817439817,-502.13396927,0.0002,3]
[351847104,1738817439826,-526.74870012,0.0002,3]
[351847105,1738817439836,-500.0,0.0002,3]
[351847106,1738817439846,-366.4066722,0.0002,3]
[351847107,1738817439856,-500.0,0.0002,3]
[351847108,1738817439866,-500.0,0.0002,2]
[351847109,1738817439876,-500.0,0.0002,3]
[351847110,1738817439885,-242.87518274,0.0002,3]
[351847111,1738817439895,-506.55745759,0.0002,3]
[351847112,1738817439904,-500.0,0.0002,3]
[351847113,1738817439914,-506.69278425,0.0002,3]
[351847114,1738817439924,-509.2847278,0.0002,3]
[351847115,1738817439933,-510.97650462,0.0002,3]
[351847116,1738817439942,-504.33240458,0.0002,3]
[351847117,1738817439952,-1383.97,0.0002,3]
[351847118,1738817439961,-621.63539802,0.0002,3]
[351847119,1738817439971,-500.0,0.0002,3]
[351847120,1738817439980,-180.2571036,0.0002,3]
[351847121,1738817439990,-500.0,0.0002,3]
[351847122,1738817440001,-503.34238413,0.0002,3]
[351847123,1738817440011,-500.0,0.0002,3]
[351847124,1738817440021,-508.34095714,0.0002,3]
[351847125,1738817440031,-500.0,0.0002,3]
[351847126,1738817440040,-500.0,0.0002,3]
[351847127,1738817440049,-604.044787,0.0002,3]
[351847128,1738817440059,-521.36230344,0.0002,3]
[351847129,1738817440069,-481.18445874,0.0002,3]
[351847130,1738817440079,-464.25204064,0.0002,3]
[351847131,1738817440088,-502.11123393,0.0002,3]
[351847132,1738817440098,-624.98730632,0.0002,3]
[351847133,1738817440107,-500.0,0.0002,3]
[351847134,1738817440117,-500.0,0.0002,3]
[351847135,1738817440127,-2305.15,0.0002,3]
[351847136,1738817440136,-504.16295357,0.0002,3]
[351847137,1738817440146,-621.83837588,0.0002,3]
[351847138,1738817440156,-327.03140577,0.0002,3]
[351847139,1738817440166,-529.82418325,0.0002,3]
[351847140,1738817440175,-500.0,0.0002,3]
[351847141,1738817440185,-513.03469679,0.0002,3]
[351847142,1738817440194,-284.73603167,0.0002,3]
[351847143,1738817440204,-500.0,0.0002,3]
[351847144,1738817440214,-511.72303753,0.0002,3]
[351847145,1738817440225,-7071.03965797,0.00020008,2]
[351847146,1738817440235,-500.0,0.00020042,2]
[351847147,1738817440246,-1421.53509343,0.00020079,2]
[351847148,1738817440256,-191.60788797,0.00020099,3]
[351847149,1738817440265,-2500.0,0.00020099,120]
[351847150,1738817440275,-500.0,0.00020099,3]
[351847151,1738817440285,-496.59520429,0.00020099,3]
[351847152,1738817440294,-500.0,0.00020099,3]
[351847153,1738817440303,-511.06926807,0.00020099,3]
[351847154,1738817440313,-500.0,0.00020099,3]
[351847155,1738817440322,-499.21786229,0.00020099,3]
[351847156,1738817440332,-452.91739443,0.00020099,3]
[351847157,1738817440341,-500.0,0.00020099,3]
[351847158,1738817440351,-426.03899163,0.00020099,3]
[351847159,1738817440364,-500.0,0.00020099,3]
[351847160,1738817440374,-500.0,0.00020099,3]
[351847161,1738817440384,-500.0,0.00020099,3]
[351847162,1738817440394,-500.0,0.00020099,3]
[351847163,1738817440404,-500.0,0.00020099,2]
[351847164,1738817440414,-500.0,0.00020099,3]
[351847165,1738817440424,-500.0,0.00020099,3]
[351847166,1738817440435,-500.0,0.00020099,3]
[351847167,1738817440445,-500.0,0.00020099,3]
[351847168,1738817440454,-507.59981046,0.00020099,3]
[351847169,1738817440464,-500.0,0.00020099,3]
[351847170,1738817440473,-500.0,0.00020099,3]
[351847171,1738817440483,-508.85337799,0.00020099,3]
[351847172,1738817440492,-500.0,0.00020099,3]
[351847173,1738817440502,-500.0,0.00020099,3]
[351847174,1738817440512,-500.0,0.00020099,3]
[351847175,1738817440521,-500.0,0.00020099,3]
[351847176,1738817440531,-500.0,0.00020099,3]
[351847177,1738817440541,-500.0,0.00020099,3]
[351847178,1738817440551,-500.0,0.00020099,3]
[351847179,1738817440560,-510.38415934,0.00020099,3]
[351847180,1738817440570,-500.0,0.00020099,3]
[351847181,1738817440579,-500.0,0.00020099,3]
[351847182,1738817440589,-688.63,0.000201,31]
[351847183,1738817440598,-688.63,0.000201,31]
[351847184,1738817440607,-688.63,0.000201,31]
[351847185,1738817440617,-688.63,0.000201,31]
[351847186,1738817440626,-688.63,0.000201,31]
[351847187,1738817440636,-688.63,0.000201,31]
[351847188,1738817440646,-688.63,0.000201,31]
[351847189,1738817440656,-688.63,0.000201,31]
[351847190,1738817440665,-688.63,0.000201,31]
[351847191,1738817440675,-688.63,0.000201,31]
[351847192,1738817440684,-688.63,0.000201,31]
[351847193,1738817440694,-688.63,0.000201,31]
[351847194,1738817440710,-688.63,0.000201,31]
[351847195,1738817440720,-688.63,0.000201,31]
[351847196,1738817440730,-688.63,0.000201,31]
[351847197,1738817440739,-688.63,0.000201,31]
[351847198,1738817440749,-1995.3268979,0.00020102,2]
[351847199,1738817440758,-989.00663715,0.0002012,2]
[351847200,1738817440768,-986.65287469,0.0002012,2]
[351847201,1738817440778,-506.60483293,0.0002012,2]
[351847202,1738817440787,-500.0,0.0002012,2]
[351847203,1738817440797,-500.0,0.0002012,2]
[351847204,1738817440807,-500.0,0.0002012,2]
[351847205,1738817440816,-906.70051594,0.0002012,2]
[351847206,1738817440825,-500.0,0.0002012,2]
[351847207,1738817440835,-500.0,0.0002012,2]
[351847208,1738817440844,-500.0,0.0002012,2]
[351847209,1738817440854,-701.46773551,0.0002012,2]
[351847210,1738817440863,-500.0,0.0002012,2]
[351847211,1738817440873,-600.0,0.0002012,2]
[351847212,1738817440882,-732.9033628,0.0002012,2]
[351847213,1738817440891,-150.0,0.00020187,2]
[351847214,1738817440901,-164.0,0.000202,2]
[351847215,1738817440911,-666.0,0.00020201,2]
[351847216,1738817440921,-666.0,0.00020201,2]
[351847217,1738817440932,-666.0,0.00020201,2]
[351847218,1738817440941,-666.0,0.00020201,2]
[351847219,1738817440951,-666.0,0.00020201,2]
[351847220,1738817440961,-666.0,0.00020201,2]
[351847221,1738817440971,-523.16653979,0.00020201,3]
[351847222,1738817440981,-515.65078288,0.00020201,3]
[351847223,1738817440991,-255.6189075,0.00020201,3]
[351847224,1738817441001,-515.7476205,0.00020201,3]
[351847225,1738817441010,-521.29787728,0.00020201,3]
[351847226,1738817441019,-512.67052851,0.00020201,3]
[351847227,1738817441029,-510.63642957,0.00020201,3]
[351847228,1738817441040,-502.17799971,0.00020201,3]
[351847229,1738817441050,-518.19432518,0.00020201,3]
[351847230,1738817441061,-519.10578552,0.00020201,3]
[351847231,1738817441070,-500.0,0.00020201,2]
[351847232,1738817441081,-512.17382485,0.00020201,3]
[351847233,1738817441090,-500.98717673,0.00020201,3]
[351847234,1738817441100,-505.8705126,0.00020201,3]
[351847235,1738817441110,-511.85743221,0.00020201,3]
[351847236,1738817441119,-504.5843309,0.00020201,3]
[351847237,1738817441129,-510.19624305,0.00020201,3]
[351847238,1738817441139,-498.9837889,0.00020201,3]
[351847239,1738817441148,-509.70163689,0.00020201,3]